Cogmind - Beta 16.1 @@@ ROGUE MODE // 2026.04.19 @ 15:31:14 Player: beans Result: Destroyed by I2-6QU(R) with Subdweller Beam Cannon Performance ------------- Evolutions (0) 0 Regions Visited (3) 600 Robots Destroyed (29) 145 Value Destroyed (569) 569 Prototype IDs (0) 0 Alien Tech Used (0) 0 Bonus (0) 0 TOTAL SCORE: 1314 Bonus ------- None Cogmind --------- Core Integrity 0/250 Matter 199/300 Energy 25/100 System Corruption 0% Temperature Cool (9) Movement Rolling (150) Ox4 Location -10/Subcaves Parts ------- > --- POWER (1) -------- (None) > --- PROPULSION (2) --- Subdweller Monowheel > --- UTILITY (2) ------ Heat Sink Huge Storage Unit > --- WEAPON (2) ------- Particle Cannon > --- INVENTORY (25) --- Combat Airjet Thermal Generator Targeting Computer Improved Propulsion Shielding Improved Propulsion Shielding Light Armor Plating Hardened Medium Armor Plating Shock Absorption System Shock Rifle Particle Cannon Light Assault Rifle Heavy Flail Peak State ------------ > --- POWER ------------ Improved Ion Engine > --- PROPULSION ------- Wheel Subdweller Monowheel > --- UTILITY ---------- Heat Sink Huge Storage Unit > --- WEAPON ----------- Particle Cannon Mini Grenade Launcher > --- INVENTORY -------- Wheel Combat Airjet Thermal Generator Targeting Computer Improved Propulsion Shielding Improved Propulsion Shielding Light Armor Plating Hardened Medium Armor Plating Shock Absorption System Shock Rifle Beam Cannon Particle Cannon Light Assault Rifle Grenade Launcher Heavy Flail [Rating: 14] Favorites ----------- Power Improved Ion Engine Engine Improved Ion Engine Propulsion Wheel Wheel Wheel Utility Huge Storage Unit Device Heat Sink Storage Huge Storage Unit Weapon Particle Cannon Energy Cannon Particle Cannon Ballistic Gun Light Assault Rifle Launcher Mini Grenade Launcher Build | -11 -10 -10 -10 ------- Run | Yrd Mat Min Sub Slots Evolved . | . . . . Power . | . . . . Propulsion . | . . . . Utility . | . . . . Weapon . | . . . . Parts Attached 23 | 5 9 4 5 Power 3 | 1 1 1 . Engine 3 | 1 1 1 . Core . | . . . . Reactor . | . . . . Propulsion 7 | 2 1 2 2 Treads . | . . . . Leg . | . . . . Wheel 7 | 2 1 2 2 Hover . | . . . . Flight . | . . . . Utility 3 | 1 2 . . Device 1 | . 1 . . Storage 2 | 1 1 . . Processor . | . . . . Hackware . | . . . . Protection . | . . . . Artifact . | . . . . Weapon 10 | 1 5 1 3 Energy Gun . | . . . . Energy Cannon 6 | . 4 1 1 Ballistic Gun 2 | 1 . . 1 Ballistic Cannon . | . . . . Launcher 2 | . 1 . 1 Special Weapon . | . . . . Impact Weapon . | . . . . Slashing Weapon . | . . . . Piercing Weapon . | . . . . Special Melee Weapon . | . . . . Unidentified Prototypes . | . . . . Parts Lost 11 | . 1 3 7 Power 2 | . . 1 1 Propulsion 4 | . . 2 2 Utility . | . . . . Weapon 5 | . 1 . 4 Highest Loss Streak 4 | . 1 2 4 To Critical Strikes . | . . . . Average Backups 6 | . 3 6 14 Power . | . . . . Propulsion . | . . . 1 Utility 2 | . . 1 7 Weapon 3 | . 2 4 6 Tool/Special . | . . . . Unused Backups 11 | . 1 . 10 Power 1 | . 1 . . Propulsion 1 | . . . 1 Utility 7 | . . . 7 Weapon 2 | . . . 2 Tool/Special . | . . . . Average Slot Usage (%) 86 | . 82 92 81 Engine 12 | . 14 13 7 Wheel 24 | . 28 24 21 Device 12 | . 8 14 14 Storage 13 | . 13 14 14 Energy Cannon 16 | . 11 22 9 Ballistic Gun 3 | . 5 . 9 Launcher 2 | . . 1 4 Peak Build Rating 14 | 5 10 12 14 Average Rating 8 | 3 6 9 11 On Entrance 5 | . 5 6 12 Avg Prop Armor Cover (%) . | . . . . Naked Turns . | . . . . Heaviest Build 96 | 11 96 95 95 Greatest Support 32 | 26 32 26 30 Greatest Overweight (x) 27 | . 3 9 27 Average Overweight (x) 3 | . 2 4 3 Largest Inventory Capacity 25 | 8 25 25 25 Average Capacity 23 | 6 23 25 25 Most Carried 16 | 3 6 14 16 Average Carried 6 | . 3 6 14 Final Capacity 25 | 8 25 25 25 Final Carried 14 | . 6 14 12 Class Distribution -------------------- 92% | Mutant 7% | Scavenger-Mutant Dominant Class ---------------- Mutant | -10/Materials Mutant | -10/Mines Mutant | -10/Subcaves Resources | -11 -10 -10 -10 ----------- Run | Yrd Mat Min Sub Matter Collected 613 | 219 206 85 103 Remotely . | . . . . Salvage Created 616 | . 352 127 137 Parts 51 | . 14 28 9 Haulers Intercepted 1 | . 1 . . Recyclers Shooed 2 | . 1 1 . Parts Field Recycled . | . . . . Retrieved Matter . | . . . . Parts Self-Destructed . | . . . . Prevented . | . . . . Parts Restored . | . . . . Kills | -11 -10 -10 -10 ------- Run | Yrd Mat Min Sub Combat Hostiles Destroyed 19 | . 3 11 5 Guns 4 | . 2 . 2 Cannons 3 | . 1 2 . AOE 12 | . . 9 3 Classes Destroyed 8 | . 4 3 1 Worker 2 | . . 2 . Builder 3 | . 2 1 . Tunneler 1 | . . 1 . Hauler 1 | . 1 . . Recycler 3 | . 3 . . Swarmer 11 | . . 11 . Grunt 3 | . 3 . . Subdweller 5 | . . . 5 Best Kill Streak 6 | . 5 6 2 Combat Bots Only 6 | . 2 6 2 Max Kills in Single Turn 4 | . 2 4 1 Gunslinging . | . . . . Exploded 3 | . . 3 1 Melee . | . . . . Uniques/NPCs Destroyed . | . . . . Combat | -11 -10 -10 -10 -------- Run | Yrd Mat Min Sub Hostile Shots Fired 107 | . 32 38 37 Missed 28 | . 5 8 15 Hits 79 | . 27 30 22 Projectile 79 | . 27 30 22 Critical Strikes 3 | . 2 . 1 Damage Taken 1237 | . 406 280 551 Core 270 | . 61 65 144 Absorbed by Shields . | . . . . Core Remaining (%) 100 | 100 . . . Volleys Fired 104 | . 46 29 29 Largest 2 | . 2 2 2 Hottest 136 | . 136 128 68 Shots Fired 138 | . 62 35 41 Gun 48 | . 23 . 25 Cannon 72 | . 35 31 6 Launcher 18 | . 4 4 10 Special . | . . . . Kinetic 48 | . 23 . 25 Thermal 72 | . 35 31 6 Explosive 18 | . 4 4 10 Electromagnetic . | . . . . Robot Hit Streak 23 | . 11 2 23 Robot Miss Streak 7 | . 3 7 1 Penetration Max . | . . . . Secondary Targets . | . . . . Shots Hit Robots 84 | . 37 11 36 Core Hits 39 | . 16 14 9 Critical Kills . | . . . . Critical Parts Destroyed . | . . . . Critical Strikes 1 | . . . 1 Destroy 1 | . . . 1 Melee Attacks . | . . . . Impact . | . . . . Slashing . | . . . . Piercing . | . . . . Sneak Attacks . | . . . . Combat Hostiles . | . . . . Follow-up Attacks . | . . . . Damage Inflicted 2397 | . 783 778 836 Guns 386 | . 119 . 267 Cannons 660 | . 359 199 102 Explosions 1349 | . 303 579 467 Melee . | . . . . Ramming 2 | . 2 . . Kinetic 386 | . 119 . 267 Thermal 1148 | . 500 546 102 Explosive 861 | . 162 232 467 Electromagnetic . | . . . . Impact . | . . . . Slashing . | . . . . Piercing . | . . . . Highest Corruption . | . . . . Average Corruption . | . . . . Corruption Purged . | . . . . Corruption Blocked . | . . . . Overload Shots . | . . . . Overflow Damage 59 | . . 46 13 Projectiles 17 | . . 17 . Explosions 42 | . . 29 13 Melee . | . . . . Knockbacks . | . . . . Impact . | . . . . Kinetic . | . . . . Secondary . | . . . . Self-Inflicted Damage 140 | . 46 38 56 Shots 5 | . 2 1 2 Rammed 1 | . 1 . . Targets Rammed 1 | . 1 . . Kicked . | . . . . Crushed . | . . . . Highest Temperature 340 | . 340 227 . Average Temperature 127 | . 162 63 . Received Heat Transfer 309 | . 237 . 72 Effects 2 | . 2 . . Interference 1 | . 1 . . Short Circuit 1 | . 1 . . Siege Activations . | . . . . Martial Activations . | . . . . Shielding Activations . | . . . . Robots Disrupted . | . . . . Combat Hostiles . | . . . . Robots Corrupted . | . . . . Combat Hostiles . | . . . . Parts Fried . | . . . . Impact Corruptions . | . . . . Robots Melted . | . . . . Combat Hostiles . | . . . . Parts Melted 5 | . 2 2 1 Heat Transferred 1808 | . 803 820 185 Parts Sabotaged . | . . . . Parts Stolen . | . . . . Parts Stripped . | . . . . Power Chain Reactions . | . . . . Alert | -11 -10 -10 -10 ------- Run | Yrd Mat Min Sub Maximum Alert Level 1 | . . 1 . Low Security (%) 58 | 100 100 25 . Level 1 41 | . . 74 . Level 2 . | . . . . Level 3 . | . . . . Level 4 . | . . . . Level 5 . | . . . . High Security . | . . . . Max Security . | . . . . Peak Influence 389 | . 68 389 . Initial 3 | . . 3 . Average 152 | . 19 256 . Influence Increases 662 | . 153 509 . Destroy 0b10 Robot/C 280 | . 60 220 . Destroy 0b10 Robot/NC 50 | . 30 20 . Destroy Leader 62 | . 22 40 . Disable Machine 150 | . 15 135 . Destroy Structure 75 | . 26 49 . Lose Combat Pursuer 45 | . . 45 . Influence Decreases 662 | . 143 340 179 Entered New Map 101 | . . 7 94 Time Decay 538 | . 143 310 85 Lost Part 23 | . . 23 . Squads Dispatched 3 | . 2 1 . Investigation 1 | . . 1 . Extermination . | . . . . Reinforcement 2 | . 2 . . Assault . | . . . . Garrison . | . . . . Intercept . | . . . . Searches Triggered . | . . . . Construction Impeded . | . . . . Haulers Reinforced . | . . . . Active Scanning Responses . | . . . . Cargo Convoy Interrupts . | . . . . Stealth | -11 -10 -10 -10 --------- Run | Yrd Mat Min Sub Distress Signals 1 | . 1 . . Communications Jammed . | . . . . Distress Signals . | . . . . Times Spotted 30 | . 8 15 7 Peak Tracking Total 14 | . 3 14 2 Tactical Retreats 4 | . . 4 . Traps | -11 -10 -10 -10 ------- Run | Yrd Mat Min Sub Traps Triggered . | . . . . Indirectly . | . . . . Trap Hack Attempts . | . . . . Triggered . | . . . . Disarmed . | . . . . Reprogrammed . | . . . . Reused . | . . . . Traps Extracted . | . . . . Installed . | . . . . Triggered . | . . . . Machines | -11 -10 -10 -10 ---------- Run | Yrd Mat Min Sub Machines Disabled 10 | . 1 9 . Max in Single Turn 9 | . 1 9 . Machines Repaired . | . . . . Machines Dismantled . | . . . . Machines Sabotaged . | . . . . Overloaded Fab Kills . | . . . . Hacking | -11 -10 -10 -10 --------- Run | Yrd Mat Min Sub Machines Accessed 1 | . . 1 . Terminals . | . . . . Fabricators . | . . . . Repair Stations . | . . . . Recycling Units . | . . . . Scanalyzers . | . . . . Garrison Access . | . . . . Total Hacks 1 | . . 1 . Successful 1 | . . 1 . Failed . | . . . . Catastrophic . | . . . . Database Lockouts . | . . . . Manual . | . . . . Terminals . | . . . . Fabricators . | . . . . Repair Stations . | . . . . Recycling Units . | . . . . Scanalyzers . | . . . . Garrison Access . | . . . . Terminal Hacks 1 | . . 1 . Open Door 1 | . . 1 . Fabricator Hacks . | . . . . Repair Station Hacks . | . . . . Recycling Unit Hacks . | . . . . Scanalyzer . | . . . . Garrison Access Hacks . | . . . . Unauthorized Hacks . | . . . . Terminals . | . . . . Fabricators . | . . . . Repair Stations . | . . . . Recycling Units . | . . . . Scanalyzers . | . . . . Garrison Access . | . . . . Data Cores Recovered . | . . . . Used . | . . . . Hacking Detections . | . . . . Full Trace Events . | . . . . Feedback Events . | . . . . Feedback Blocked . | . . . . Robot Schematics Acquired . | . . . . Robots Built . | . . . . Authchips . | . . . . Time . | . . . . Total Robot Build Rating . | . . . . Part Schematics Acquired . | . . . . Parts Built . | . . . . Authchips . | . . . . Time . | . . . . Total Part Build Rating . | . . . . Part Studies Acquired . | . . . . Parts Repaired . | . . . . Time . | . . . . Parts Recycled . | . . . . Recycled Matter . | . . . . Retrieved Matter . | . . . . Retrieved Components . | . . . . Parts Scanalyzed . | . . . . Part Schematics Acquired . | . . . . Parts Damaged . | . . . . Bothacking | -11 -10 -10 -10 ------------ Run | Yrd Mat Min Sub Used RIF Installer . | . . . . Robots Hacked . | . . . . Non-combat . | . . . . Combat . | . . . . Robot Hacks Applied . | . . . . Relay Couplers Released . | . . . . Fabnet Peak Effective % . | . . . . Robots Rewired . | . . . . Allies Hacked . | . . . . Hacks Repelled . | . . . . Allies | -11 -10 -10 -10 -------- Run | Yrd Mat Min Sub Total Allies . | . . . . Largest Group . | . . . . Highest-Rated Group . | . . . . Highest-Rated Ally . | . . . . Total Orders . | . . . . Ally Attacks . | . . . . Total Damage . | . . . . Kills . | . . . . Allies Corrupted . | . . . . Allies Melted . | . . . . Intel | -11 -10 -10 -10 ------- Run | Yrd Mat Min Sub Active Infowar (turns) . | . . . . Robot Analysis Total . | . . . . Derelict Logs Recovered 3 | . . 2 1 Drone Launches . | . . . . Drone Recoveries . | . . . . Exploration | -11 -10 -10 -10 ------------- Run | Yrd Mat Min Sub Turns Passed 1541 | 48 481 680 332 Spaces Moved 860 | 51 254 392 163 Core 21 | 19 . . 2 Treads . | . . . . Legs . | . . . . Wheels 839 | 32 254 392 161 Hover . | . . . . Flight . | . . . . Fastest Speed 50 | 50 90 135 119 Average Speed 138 | 75 125 148 152 Slowest Speed 1400 | 90 135 215 1400 Overloaded Moves . | . . . . Propulsion Burnouts . | . . . . Robots Hopped . | . . . . Potential Cave-ins . | . . . . Cave-ins Triggered . | . . . . Exploration Rate (%) 35 | 4 37 85 15 Regions Visited 3 Branch Regions 2 Pre-discovered Areas 1 | . . 1 . Known Exits Taken . | . . . . Unknown Exits Taken 3 | 1 1 1 . Scrap Searched 1 | . . 1 . Spaces Dug . | . . . . Terrain Destroyed 140 | . 27 56 57 Melee . | . . . . Projectile . | . . . . AOE 140 | . 27 56 57 Terrain Rammed . | . . . . Walls Destroyed . | . . . . Machines Disabled . | . . . . Actions | -11 -10 -10 -10 --------- Run | Yrd Mat Min Sub Total 1086 | 60 364 453 209 Wait 46 | . 27 15 4 Move 856 | 50 253 390 163 Hop . | . . . . Pick Up 34 | 5 13 13 3 Fast Attach . | . . . . Attach 23 | 5 9 5 4 Detach 6 | . 6 . . Swap 9 | . 3 1 5 Drop 7 | . 6 . 1 Fire 104 | . 46 29 29 Melee . | . . . . Ram 1 | . 1 . . Kick . | . . . . Crush . | . . . . Escape Stasis . | . . . . Rewire . | . . . . Trap . | . . . . Miscellaneous . | . . . . Route ------- -11/Scrapyard -10/Materials -10/Mines (discovered 3 exits: [*Mat x2] / [*Sub]) -10/Subcaves (discovered 1 exit: [*Mat]) History --------- Turn | Location | Event 3 | -11/Scrapyard | Discovered new exit (range 14) 49 | -11/Scrapyard | Entered Materials 311 | -10/Materials | Build established: Mutant 509 | -10/Materials | Discovered new exit (range 12) 530 | -10/Materials | Entered Mines 696 | -10/Mines | Core integrity fell below 50% 719 | -10/Mines | Discovered new exit (range 13) 793 | -10/Mines | Learned location of Mines (-9) 958 | -10/Mines | Met a Derelict shopkeep closing up shop 1003 | -10/Mines | Assembled infested the area 1068 | -10/Mines | Discovered new exit (range 7) 1106 | -10/Mines | Joined a pair of Derelicts in attacking an 0b10 outpost 1173 | -10/Mines | Learned location of 1 exit from Materials 1200 | -10/Mines | Discovered new exit (range 7) 1210 | -10/Mines | Entered Subcaves 1251 | -10/Subcaves | Ambushed by Subdweller buried in earth 1385 | -10/Subcaves | Learned Materials garrison access intel 1424 | -10/Subcaves | Core integrity fell below 20% 1462 | -10/Subcaves | Lost 4 parts (1p2n1w) 1480 | -10/Subcaves | Discovered new exit (range 9) 1542 | -10/Subcaves | Destroyed by I2-6QU(R) with Subdweller Beam Cannon Last Messages --------------- Imp. Ion Engine destroyed. Wheel destroyed. 3Z-UCJ(R) suffers critical hit (Destroy). Sub. Laser melted. 3Z-UCJ(R) destroyed. Acquired 39 matter. MK-52F(R) affixes Scrap Shield Fragment to Scrap Shield. Sub. Monowheel destroyed. Battle Rifle destroyed. MK-52F(R) destroyed. Acquired Sub. Monowheel. Acquired 51 matter. EXIT=FOUND Grenade Launcher destroyed. Destroyed Grenade Launcher. H8-LSR(R) destroyed. Mni. Grenade Launcher destroyed. Destroyed Mni. Grenade Launcher. Beam Cannon destroyed. Map ----- +----------------------------------------------------+ | ?????????????????????????????????????????????????? | | ?????????????????????????????????????????????????? | | ?????????????????????????????????????????????????? | | ?????????????????????????????????????????????????? | | ?????????????????????????????????????????????????? | | ?????????????????????????????????????????????????? | | ?????????????????????????????????????????????????? | | ?????????????????????????????????????????????????? | | ?????????????????????????????????????????????????? | | ?????????????????????????????????????????????????? | | ?????????????????????????????????????????????????? | | ?????????????????????????????????????????????????? | | ?????????????????????????????????????????????????? | | ?????????????????????????????????????????????????? | | ?????????????????????????????????????????????????? | | ?????????????????????????????????????????????????? | | ?????????????????????????????????????????????????? | | ?????????????????????????????????????????????????? | | ?????????????????????????????????????????????????? | | ????????????##???????????????????????????????????? | | ???????????## ???????############????????????#### | | ???????????# ?????## ???#######??## # | | ???????? ## ##"?## " ???## #?## | | ????????? ""?# " " ## ##???# ### | | ?????????? ""## R # ##??# | | ????????????# " # @ #### | | ?????????????# ! # ## * | | ?????????????### &%& " #### ! &! | | ?????????????# ! #" ## # ### # | | ?????????????# " " ## #### ## | | ?????????????## "" # < ### # | | ??????????????### ####"""##### # # #######?#### | | ?????????????????????#" ##???##########??????????? | | ?????????????????????#" #????????????????????????? | | ?????????????????????# ##????????????????????????? | | ?????????????????????###?????????????????????????? | | ?????????????????????????????????????????????????? | | ?????????????????????????????????????????????????? | | ?????????????????????????????????????????????????? | | ?????????????????????????????????????????????????? | | ?????????????????????????????????????????????????? | | ?????????????????????????????????????????????????? | | ?????????????????????????????????????????????????? | | ?????????????????????????????????????????????????? | | ?????????????????????????????????????????????????? | | ?????????????????????????????????????????????????? | | ?????????????????????????????????????????????????? | | ?????????????????????????????????????????????????? | | ?????????????????????????????????????????????????? | | ?????????????????????????????????????????????????? | +----------------------------------------------------+ Best States ------------- Heat Dissipation 35 Energy Generation 12 Energy Capacity 265 Matter Stores 300 Matter Capacity 300 Sight Range 16 Terrain Scan Density 10 Evasion (%) 50 Item Schematics ----------------- None Robot Schematics ------------------ None Fabricated ------------ Nothing Repaired ---------- Nothing Studied --------- None Alien Tech Used ----------------- None Achievements -------------- None Challenges ------------ None Game ------ Seed SensorMissileTerminator Manual? 0 Play Time 00:11:19 Cumulative 270.5 hours Start 2026.04.19 @ 15:21:23 End 2026.04.19 @ 15:31:14 Sessions 1 Manual Loads 0 Difficulty Rogue Special Mode None Game No. 715 Rogue 713 Adventurer 2 Explorer 0 Win Type - Total 0 Types 0/0/0/0/0/0/0/0/0/0 Lore% 68 Gallery% 64 Achievement% 44 Wizard Run 0 Options --------- Layout 2 ASCII 0 Keyboard 0 Movement Mouse Keybinds 0 Fullscreen 1 Font 24/Smallcaps Map View 50x44 Zoom Use 0% Tactical HUD 0 Map Filters NONE Filters NONE Steam 1 RUN: eb511adb-70a6-4e44-a3e8-bde89f27b64c